bitfinex/quotes_BTCUSD_20250206
["timestamp","ask_amount","ask_price","bid_price","bid_amount"]
[1738869050954,8.8e-07,96415.0,96414.0,0.45950924]
[1738869051185,8.8e-07,96415.0,96414.0,0.46250924]
[1738869051391,8.8e-07,96415.0,96414.0,0.47150924]
[1738869051696,0.00010758,96415.0,96414.0,0.37721212]
[1738869052035,0.00010758,96415.0,96414.0,0.42641212]
[1738869052255,0.00010758,96415.0,96414.0,0.57641212]
[1738869052469,0.00010758,96415.0,96414.0,0.56741212]
[1738869052926,0.00010758,96415.0,96414.0,0.57641212]
[1738869053232,5.8e-07,96415.0,96414.0,0.68991577]
[1738869053433,5.8e-07,96415.0,96414.0,0.72191577]
[1738869053593,8e-08,96426.0,96425.0,0.155561]
[1738869053789,8e-08,96426.0,96425.0,0.46443087]
[1738869054131,0.0001068,96446.0,96443.0,0.155532]
[1738869054329,0.0001068,96446.0,96430.0,0.01]
[1738869054330,0.00358643,96454.0,96453.0,0.155516]
[1738869054631,0.08317089,96464.0,96463.0,0.1555]
[1738869054866,0.0763,96472.0,96467.0,0.155492]
[1738869055069,0.00033898,96469.0,96467.0,0.155492]
[1738869055293,0.00033898,96469.0,96468.0,0.155491]
[1738869055687,0.00033898,96469.0,96468.0,0.17702414]
[1738869055829,0.00033898,96469.0,96468.0,0.27849123]
[1738869056443,0.00033898,96469.0,96468.0,0.17598758]
[1738869056842,0.00033898,96469.0,96468.0,0.17698758]
[1738869057039,0.00033898,96469.0,96468.0,0.23625234]
[1738869057268,0.00033898,96469.0,96468.0,0.23525234]
[1738869057469,7e-05,96483.0,96482.0,0.155469]
[1738869057673,7e-05,96483.0,96482.0,0.25797265]
[1738869058668,0.08027817,96500.0,96499.0,0.155442]
[1738869058873,0.08074117,96500.0,96499.0,0.136442]
[1738869060633,0.08074117,96500.0,96498.0,0.155442]
[1738869060835,0.08174117,96500.0,96498.0,0.155442]
[1738869060951,0.08374117,96500.0,96499.0,0.0362703]
[1738869061151,0.08374117,96500.0,96498.0,0.155442]
[1738869061573,0.08174117,96500.0,96498.0,0.155442]
[1738869061776,0.08374117,96500.0,96498.0,0.155442]
[1738869062060,0.003463,96500.0,96498.0,0.155442]
[1738869062875,0.002463,96500.0,96498.0,0.155442]
[1738869063119,0.000463,96500.0,96499.0,0.10353984]
[1738869063317,0.000463,96500.0,96499.0,0.10250365]
[1738869063524,0.0005697,96500.0,96499.0,0.2589817]
[1738869063750,0.0005697,96500.0,96499.0,0.34806749]
[1738869064256,0.0005697,96500.0,96499.0,0.50006749]
[1738869064612,0.0005697,96500.0,96499.0,0.52306749]
[1738869064812,0.0005697,96500.0,96499.0,0.52106749]
[1738869065012,0.0005697,96500.0,96499.0,0.54325387]
[1738869065279,0.0001067,96512.0,96499.0,0.54325387]
[1738869065280,4e-07,96512.0,96509.0,0.01]
[1738869065448,4e-07,96512.0,96511.0,0.47592565]
[1738869065651,0.00013924,96512.0,96511.0,0.57512879]
[1738869066318,0.00013924,96512.0,96511.0,0.55212879]
[1738869066915,0.00013924,96512.0,96511.0,0.60192865]
[1738869067103,0.00013924,96512.0,96511.0,0.61092865]
[1738869067313,0.00013924,96512.0,96511.0,0.62492865]
[1738869067465,0.00013924,96512.0,96511.0,0.62892865]
[1738869067669,0.00013924,96512.0,96511.0,0.63792865]
[1738869067868,0.00013924,96512.0,96511.0,0.67852218]
[1738869068202,0.0001068,96520.0,96519.0,0.409009]
[1738869068366,8e-07,96520.0,96519.0,0.60815715]
[1738869068992,0.01427359,96537.0,96536.0,0.155382]
[1738869069323,0.01427359,96537.0,96536.0,0.26656565]
[1738869069499,0.155339,96563.0,96554.0,0.155352]
[1738869069702,0.00013879,96549.0,96548.0,0.155363]
[1738869069956,0.00013879,96549.0,96548.0,0.27340295]
[1738869070163,0.00013879,96549.0,96548.0,0.0155363]
[1738869070333,0.00013879,96549.0,96536.0,0.009]
[1738869070538,0.00013879,96549.0,96547.0,0.155363]
[1738869070748,0.00013879,96549.0,96548.0,0.002]
[1738869071382,0.00013879,96549.0,96547.0,0.155364]
[1738869071659,0.00013879,96549.0,96547.0,0.157364]
[1738869072653,0.00013879,96549.0,96548.0,0.006]
[1738869072890,0.00013879,96549.0,96547.0,0.002]
[1738869073097,0.00013879,96549.0,96547.0,0.008]
[1738869073248,0.00013879,96549.0,96547.0,0.006]
[1738869073249,0.155363,96548.0,96547.0,0.006]
[1738869073456,0.278063,96548.0,96547.0,0.006]
[1738869073623,0.53056665,96548.0,96547.0,0.006]
[1738869074039,0.38056665,96548.0,96547.0,0.006]
[1738869074236,0.1227,96548.0,96526.0,0.00761172]
[1738869074612,0.207173,96538.0,96526.0,0.00761172]
[1738869074774,0.155381,96537.0,96530.0,0.155391]
[1738869074988,0.1227,96548.0,96526.0,0.00761172]
[1738869074989,0.207158,96545.0,96526.0,0.00761172]
[1738869075136,0.1227,96548.0,96527.0,0.01274906]
[1738869075338,0.00024539,96549.0,96548.0,0.155363]
[1738869076882,0.00024539,96549.0,96548.0,0.156363]
[1738869077364,0.00024539,96549.0,96548.0,0.17687035]
[1738869077893,0.00024539,96549.0,96548.0,0.19596808]
[1738869078702,0.00024539,96549.0,96548.0,0.25871289]
[1738869079322,0.00024539,96549.0,96548.0,0.02160508]
[1738869081068,0.00024539,96549.0,96548.0,0.20755089]
[1738869082505,0.00024539,96549.0,96548.0,0.31005454]
[1738869082886,0.00024539,96549.0,96548.0,0.31105454]
[1738869083463,0.00024539,96549.0,96548.0,0.31005454]
[1738869083682,0.00024539,96549.0,96548.0,0.36349149]
[1738869083881,0.00024539,96549.0,96548.0,0.36549149]
[1738869084049,0.00024539,96549.0,96548.0,0.36349149]
[1738869084260,0.00024539,96549.0,96548.0,0.3843846]
[1738869084457,0.00024539,96549.0,96548.0,0.31194765]
[1738869085524,0.0001067,96566.0,96565.0,0.155335]
[1738869086102,0.0001067,96566.0,96565.0,0.2894569]
[1738869086320,0.0001067,96566.0,96565.0,0.28842146]
[1738869086696,0.0001067,96566.0,96565.0,0.29242146]
[1738869087050,0.0001067,96566.0,96565.0,0.58420291]
[1738869087247,0.0001067,96566.0,96565.0,0.61720291]
[1738869087464,0.0001067,96566.0,96565.0,0.60720291]
[1738869087591,0.0001067,96597.0,96588.0,0.155298]
[1738869087812,0.00033879,96589.0,96588.0,0.25780165]
[1738869088510,0.0001067,96597.0,96596.0,0.155285]
[1738869088632,0.00056916,96597.0,96596.0,0.25882371]
[1738869088841,0.00056916,96597.0,96596.0,0.25778865]
[1738869089038,0.00056916,96597.0,96593.0,0.15529]
[1738869089249,0.15585316,96597.0,96596.0,0.03058281]
[1738869089523,0.15585316,96597.0,96596.0,0.1954511]
[1738869089524,0.00056916,96597.0,96596.0,0.1954511]
[1738869089667,0.00056916,96597.0,96596.0,0.22983539]
[1738869089880,0.00056916,96597.0,96596.0,0.1954511]
[1738869090101,0.00056916,96597.0,96596.0,0.30595475]
[1738869090295,0.00056916,96597.0,96596.0,0.29995475]
[1738869090732,0.00056916,96597.0,96596.0,0.33181663]
[1738869090991,0.00056916,96597.0,96596.0,0.35283099]
[1738869091238,0.00056916,96597.0,96596.0,0.42950292]
[1738869091484,0.00056916,96597.0,96596.0,0.57750292]
[1738869091746,0.00156916,96597.0,96596.0,0.58450292]
[1738869092005,0.00156916,96597.0,96596.0,0.50980922]
[1738869092255,0.00156916,96597.0,96596.0,0.25730557]
[1738869092496,0.00156916,96597.0,96596.0,0.22546546]
[1738869092731,0.00156916,96597.0,96596.0,0.21588217]
[1738869093221,0.00156916,96597.0,96596.0,0.06059717]
[1738869093478,0.15685316,96597.0,96596.0,0.009]
[1738869094243,0.38225316,96597.0,96596.0,0.009]
[1738869094581,0.357047,96596.0,96575.0,0.207092]
[1738869094741,0.10250365,96596.0,96576.0,0.02274816]
[1738869094944,0.155303,96586.0,96574.0,0.207094]
[1738869095149,0.155287,96595.0,96574.0,0.207094]
[1738869095354,0.155301,96587.0,96580.0,0.155311]
[1738869095565,0.155308,96582.0,96576.0,0.155316]
[1738869095778,0.15,96595.0,96570.0,0.207103]
[1738869095979,0.155304,96585.0,96571.0,0.05400092]
[1738869096178,0.155301,96587.0,96580.0,0.155311]
[1738869096858,0.15,96595.0,96574.0,0.004]
[1738869097033,0.15,96595.0,96575.0,0.23902288]
[1738869097213,0.15529,96594.0,96588.0,0.155298]
[1738869097616,0.155299,96588.0,96571.0,0.01917948]
[1738869097813,0.207054,96593.0,96574.0,0.207094]
[1738869098016,0.15,96595.0,96572.0,0.03195063]
[1738869098017,0.155305,96585.0,96575.0,0.03195063]
[1738869098271,0.155305,96585.0,96579.0,0.155311]
[1738869098442,0.155319,96575.0,96572.0,0.0287711]
[1738869098608,0.20709,96577.0,96572.0,0.0287711]
[1738869098807,0.10250365,96594.0,96572.0,0.0287711]
[1738869099036,0.023,96593.0,96573.0,0.03197593]
[1738869099241,0.155321,96574.0,96573.0,0.03197593]
[1738869099442,0.155322,96573.0,96572.0,0.0287711]
[1738869099644,0.155322,96573.0,96572.0,0.01917948]
[1738869100107,0.207047,96596.0,96573.0,0.01917948]
[1738869100313,0.155299,96588.0,96580.0,0.155311]
[1738869100445,0.20706,96591.0,96577.0,0.207087]
[1738869100446,0.155298,96589.0,96579.0,0.155313]
[1738869100647,0.207061,96590.0,96573.0,0.01917948]
[1738869100852,0.155297,96589.0,96579.0,0.155311]
[1738869101047,0.155301,96587.0,96573.0,0.01917948]
[1738869101268,0.023,96594.0,96574.0,0.03198965]
[1738869101473,0.023,96589.0,96574.0,0.01917948]
[1738869101680,0.0799,96580.0,96574.0,0.01917948]
[1738869102243,0.155313,96579.0,96574.0,0.01917948]
[1738869102424,0.0799,96580.0,96574.0,0.01917948]
[1738869102638,0.0799,96580.0,96574.0,0.155321]
[1738869103372,0.0799,96580.0,96573.0,0.01917948]
[1738869103525,0.0799,96580.0,96574.0,0.15632]
[1738869103686,0.0799,96580.0,96576.0,0.155317]
[1738869103889,0.0799,96580.0,96575.0,0.17449748]
[1738869104180,0.0799,96580.0,96575.0,0.01917948]
[1738869104689,0.0766,96592.0,96576.0,0.034309]
[1738869104804,0.0766,96601.0,96577.0,0.0010353]
[1738869105006,0.0766,96601.0,96596.0,0.155285]
[1738869105209,0.00056916,96597.0,96596.0,0.155285]
[1738869105807,0.001,96592.0,96591.0,0.155292]
[1738869106257,0.00056916,96597.0,96588.0,0.207063]
[1738869106435,0.00056916,96597.0,96594.0,0.155288]
[1738869106633,0.00056916,96597.0,96596.0,0.17546448]
[1738869106837,0.00056916,96597.0,96596.0,0.02017948]
[1738869107158,0.00456916,96597.0,96596.0,0.17546448]
[1738869107965,0.00056916,96597.0,96596.0,0.17446448]
[1738869108156,0.00056916,96597.0,96596.0,0.01917948]
[1738869108301,0.00056916,96597.0,96596.0,0.02117948]
[1738869108714,0.00056916,96597.0,96596.0,0.00217948]
[1738869108902,0.00056916,96597.0,96596.0,0.01178463]
[1738869109519,0.00056916,96597.0,96596.0,0.0435216]
[1738869111724,0.00056916,96597.0,96596.0,0.1988066]
[1738869112058,0.00056916,96597.0,96596.0,0.0435216]
[1738869113701,0.00056916,96597.0,96596.0,0.0245216]
[1738869114152,0.15585316,96597.0,96596.0,0.0245216]
[1738869115311,0.15585316,96597.0,96589.0,0.00022407]
[1738869115928,0.00056916,96597.0,96596.0,0.001]
[1738869116697,0.00056916,96597.0,96596.0,0.156285]
[1738869117052,0.00056916,96597.0,96589.0,0.00022407]
[1738869117223,0.00056916,96597.0,96596.0,0.157285]
[1738869118644,0.00056916,96597.0,96596.0,0.138285]
[1738869118844,0.00056916,96597.0,96596.0,0.002]
[1738869120287,0.00056916,96597.0,96596.0,0.17303661]
[1738869120517,0.00056916,96597.0,96596.0,0.157285]
[1738869121067,0.00056916,96597.0,96596.0,0.19039199]
[1738869121484,0.00056916,96597.0,96596.0,0.28986051]
[1738869121679,0.00056916,96597.0,96596.0,0.43986051]
[1738869121891,0.00056916,96597.0,96596.0,0.44186051]
[1738869122144,0.00056916,96597.0,96596.0,0.53042947]
[1738869122585,1.6e-07,96597.0,96596.0,0.53042947]
[1738869123018,1.6e-07,96597.0,96596.0,0.61032947]
[1738869123243,1.6e-07,96597.0,96596.0,0.63332947]
[1738869123461,1.6e-07,96597.0,96596.0,0.64032947]
[1738869123658,1.6e-07,96597.0,96596.0,0.63532947]
[1738869124075,0.0145809,96634.0,96628.0,0.155234]
[1738869124276,0.00033868,96629.0,96628.0,0.27326105]
[1738869124760,0.00033868,96629.0,96628.0,0.25773765]
[1738869124956,0.00033868,96629.0,96628.0,0.2786169]
[1738869125727,0.00024694,96629.0,96628.0,0.2786169]
[1738869126460,0.00024694,96629.0,96628.0,0.32852715]
[1738869126686,0.00024694,96629.0,96628.0,0.33052715]
[1738869126884,0.00024694,96629.0,96628.0,0.33752715]
[1738869127089,0.00024694,96629.0,96628.0,0.34512477]
[1738869127434,0.00024694,96629.0,96628.0,0.34712477]
[1738869127870,0.00024694,96629.0,96628.0,0.21390712]
[1738869128651,0.00024694,96629.0,96628.0,0.20690712]
[1738869128857,0.00024694,96629.0,96628.0,0.1973095]
[1738869129407,0.00024694,96629.0,96628.0,0.29781315]
[1738869129584,0.00024694,96629.0,96628.0,0.29981315]
[1738869129997,0.0145809,96634.0,96633.0,0.155226]
[1738869130685,0.0145809,96634.0,96633.0,0.2587644]
[1738869130887,0.0145809,96634.0,96633.0,0.25772965]
[1738869131092,0.0145809,96634.0,96633.0,0.35766891]
[1738869131303,0.0145809,96634.0,96633.0,0.36924597]
[1738869131507,0.0001068,96663.0,96633.0,0.21401997]
[1738869131714,0.0001068,96663.0,96661.0,0.155181]
[1738869132047,0.07943863,96662.0,96661.0,0.155181]
[1738869133033,0.08143863,96662.0,96661.0,0.155181]
[1738869133247,0.155183,96660.0,96653.0,0.155193]
[1738869133460,0.206909,96661.0,96630.0,0.12983282]
[1738869133645,0.155181,96661.0,96654.0,0.155192]
[1738869133939,0.00613863,96662.0,96639.0,0.03061858]
[1738869134101,0.00613863,96662.0,96640.0,0.21437106]
[1738869134102,0.00213863,96662.0,96640.0,0.21437106]
[1738869134457,0.001,96660.0,96658.0,0.155186]
[1738869134656,0.001,96660.0,96645.0,0.20694]
[1738869134836,0.001,96660.0,96646.0,0.24094622]
[1738869135043,0.001,96660.0,96658.0,0.155185]
[1738869135402,0.001,96660.0,96659.0,0.17431255]
[1738869135575,0.001,96661.0,96659.0,0.17431255]
[1738869135785,0.001,96661.0,96660.0,0.155183]
[1738869136183,0.001,96661.0,96659.0,0.01912855]
[1738869136885,0.155187,96657.0,96656.0,0.01912855]
[1738869137038,0.0816,96668.0,96656.0,0.01912855]
[1738869137241,0.386787,96657.0,96656.0,0.01912855]
[1738869137831,0.386787,96657.0,96628.0,0.01912855]
[1738869137832,0.15,96656.0,96628.0,0.01912855]
[1738869138071,0.35710365,96657.0,96637.0,0.00013863]
[1738869138072,0.15,96654.0,96637.0,0.00013863]
[1738869138284,0.155203,96648.0,96637.0,0.00013863]
[1738869138475,0.15,96650.0,96637.0,0.00013863]
[1738869138693,0.155204,96647.0,96637.0,0.00013863]
[1738869138846,0.15,96650.0,96638.0,0.24530893]
[1738869139051,0.15,96650.0,96644.0,0.155208]
[1738869139258,0.15,96650.0,96649.0,0.1552]
[1738869139465,0.0816,96657.0,96640.0,0.12983282]
[1738869139672,0.0805,96669.0,96661.0,0.15518]
[1738869140026,0.0805,96669.0,96662.0,0.170697]
[1738869140232,0.0805,96669.0,96662.0,0.015518]
[1738869140588,0.0805,96669.0,96650.0,0.12983282]
[1738869140818,0.0795,96676.0,96651.0,0.1035382]
[1738869140975,0.002,96669.0,96666.0,0.155172]
[1738869141174,0.002,96669.0,96661.0,0.206906]
[1738869141375,0.002,96669.0,96651.0,0.10250365]
[1738869141728,0.003,96669.0,96668.0,0.15517]
[1738869141945,0.0795,96676.0,96673.0,0.155162]
[1738869142178,0.0795,96676.0,96653.0,0.206925]
[1738869142179,0.0836873,96682.0,96674.0,0.15516]
[1738869142365,0.0836873,96682.0,96671.0,0.206886]
[1738869142567,0.0836873,96682.0,96673.0,0.155161]
[1738869142703,0.155152,96680.0,96672.0,0.155163]
[1738869142930,0.0836873,96682.0,96667.0,0.206895]
[1738869143233,0.0079873,96682.0,96674.0,0.15516]
[1738869144247,0.0079873,96682.0,96674.0,0.00955181]
[1738869144569,0.155158,96676.0,96674.0,0.01355181]
[1738869145118,0.28391685,96675.0,96674.0,0.01355181]
[1738869145347,0.28391685,96675.0,96674.0,0.03267491]
[1738869145598,0.28391685,96675.0,96674.0,0.0231231]
[1738869146375,0.28391685,96675.0,96674.0,0.0191231]
[1738869146825,0.28491685,96675.0,96674.0,0.0191231]
[1738869147255,0.023,96674.0,96663.0,0.0191231]
[1738869147466,0.155176,96664.0,96663.0,0.0191231]
[1738869148965,0.155183,96660.0,96659.0,0.00022407]
[1738869150142,0.155183,96660.0,96659.0,0.02134717]
[1738869150858,0.15,96671.0,96659.0,0.02234717]
[1738869151025,0.15,96673.0,96659.0,0.02234717]
[1738869151470,0.155181,96662.0,96659.0,0.02234717]
[1738869151690,0.155181,96661.0,96659.0,0.02234717]
[1738869151885,0.206902,96664.0,96659.0,0.02234717]
[1738869152107,0.15,96673.0,96659.0,0.02234717]
[1738869152108,0.155183,96660.0,96659.0,0.02234717]
[1738869152431,0.155183,96660.0,96659.0,0.02034717]
[1738869152627,0.155183,96660.0,96659.0,0.01934717]
[1738869153271,0.413778,96670.0,96659.0,0.04995052]
[1738869153453,0.155181,96662.0,96659.0,0.05195052]
[1738869153653,0.155178,96663.0,96659.0,0.05195052]
[1738869153900,0.206885,96672.0,96659.0,0.05715943]
[1738869154109,0.155162,96674.0,96661.0,0.155181]
[1738869154398,0.1585199,96675.0,96661.0,0.00103444]
[1738869154598,0.1585199,96675.0,96660.0,0.04972645]
[1738869154821,0.155166,96671.0,96661.0,0.03655761]
[1738869155595,0.15516,96674.0,96663.0,0.03073433]
[1738869155805,0.20688,96674.0,96663.0,0.03073433]
[1738869155986,0.001,96672.0,96663.0,0.03073433]
[1738869156170,0.207885,96672.0,96663.0,0.03073433]
[1738869156368,0.206885,96672.0,96663.0,0.03073433]
[1738869156617,0.155172,96667.0,96663.0,0.03073433]
[1738869156814,0.206885,96672.0,96664.0,0.04972645]
[1738869156991,0.155168,96670.0,96664.0,0.04972645]
[1738869157196,0.155169,96669.0,96664.0,0.04972645]
[1738869158021,0.155167,96671.0,96664.0,0.04972645]
[1738869158229,0.2153989,96675.0,96664.0,0.04972645]
[1738869158423,0.0085199,96675.0,96665.0,0.04972645]
[1738869158675,0.15516,96674.0,96665.0,0.04972645]
[1738869158846,0.155164,96672.0,96665.0,0.04972645]
[1738869159190,0.155165,96671.0,96665.0,0.04972645]
[1738869159418,0.20688,96674.0,96665.0,0.04972645]
[1738869159617,0.0085199,96675.0,96665.0,0.04972645]
[1738869159804,0.155173,96666.0,96664.0,0.001]
[1738869160145,0.155173,96666.0,96661.0,0.02091706]
[1738869160146,0.155179,96662.0,96661.0,0.02091706]
[1738869160396,0.155179,96662.0,96659.0,0.00022407]
[1738869160397,0.155183,96660.0,96659.0,0.00022407]
[1738869161109,0.155183,96660.0,96659.0,0.0502057]
[1738869162775,0.155183,96660.0,96659.0,0.0522057]
[1738869163183,0.155183,96660.0,96659.0,0.0552057]
[1738869163561,0.155183,96660.0,96659.0,0.0502057]
[1738869163783,0.155183,96660.0,96659.0,0.0552057]
[1738869164991,0.155183,96660.0,96659.0,0.0512057]
[1738869165240,0.155183,96660.0,96659.0,0.0552057]
[1738869165648,0.155183,96660.0,96659.0,0.0512057]
[1738869165866,0.13963957,96690.0,96659.0,0.0512057]
[1738869165867,0.155172,96667.0,96659.0,0.0552057]
[1738869166093,0.15,96668.0,96663.0,0.155178]
[1738869166291,0.15517,96668.0,96663.0,0.155178]
[1738869166510,0.155169,96669.0,96663.0,0.155177]
[1738869166727,0.0809,96670.0,96659.0,0.02044777]
[1738869166728,0.155183,96660.0,96659.0,0.02044777]
[1738869166926,0.178183,96660.0,96659.0,0.02044777]
[1738869167247,0.155183,96660.0,96659.0,0.02044777]
[1738869168542,0.155183,96660.0,96659.0,0.0512057]
[1738869168925,0.155183,96660.0,96659.0,0.0362057]
[1738869169526,0.206908,96662.0,96659.0,0.0352057]
[1738869169724,0.155183,96660.0,96659.0,0.0312057]
[1738869170052,0.155183,96660.0,96659.0,0.0322057]
[1738869170253,0.155183,96660.0,96659.0,0.0312057]
[1738869170453,0.155183,96660.0,96659.0,0.0342057]
[1738869170674,0.155183,96660.0,96659.0,0.0352057]
[1738869171075,0.47568665,96660.0,96659.0,0.0342057]
[1738869171273,0.55678665,96660.0,96659.0,0.0342057]
[1738869171718,0.55678665,96660.0,96659.0,0.00344777]
[1738869172023,0.55678665,96660.0,96659.0,0.00044777]
[1738869172147,0.55678665,96660.0,96659.0,0.00344777]
[1738869172356,0.48678665,96660.0,96659.0,0.00044777]
[1738869172561,0.40160365,96660.0,96659.0,0.00144777]
[1738869172769,0.55678665,96660.0,96659.0,0.00144777]
[1738869173163,0.155192,96654.0,96652.0,0.00013863]
[1738869173335,0.173,96653.0,96652.0,0.00013863]
[1738869173539,0.27550365,96653.0,96652.0,0.00013863]
[1738869173901,0.35220365,96653.0,96639.0,0.01189656]
[1738869174101,0.155215,96640.0,96639.0,0.01189656]
[1738869174755,0.155222,96636.0,96627.0,0.155236]
[1738869174949,0.155219,96638.0,96627.0,0.206981]
[1738869175355,0.15,96643.0,96626.0,0.02115679]
[1738869175609,0.155228,96632.0,96626.0,0.02115679]
[1738869175812,0.206965,96635.0,96613.0,0.00103488]
[1738869175986,0.12963957,96640.0,96613.0,0.00013868]
[1738869176343,0.15,96639.0,96613.0,0.20714868]
[1738869176540,0.15,96639.0,96613.0,0.00013868]
[1738869176863,0.155242,96624.0,96615.0,0.155255]
[1738869177290,0.15,96639.0,96621.0,0.02047304]
[1738869177489,0.00864,96683.0,96613.0,0.00213868]
[1738869177490,0.155257,96614.0,96613.0,0.00213868]
[1738869177701,0.155257,96614.0,96613.0,0.00713868]
[1738869177894,0.155252,96617.0,96613.0,0.00213868]
[1738869178372,0.155252,96617.0,96615.0,0.009]
[1738869178799,0.15525,96618.0,96615.0,0.013]
[1738869178981,0.15,96627.0,96615.0,0.013]
[1738869179288,0.15,96627.0,96615.0,0.009]
[1738869179499,0.15,96627.0,96613.0,0.00013868]
[1738869179628,0.15,96627.0,96619.0,0.206998]
[1738869180076,0.15,96628.0,96616.0,0.155253]
[1738869180279,0.15,96628.0,96613.0,0.00013868]
[1738869180446,0.206981,96627.0,96616.0,0.155253]
[1738869180648,0.15,96628.0,96622.0,0.155243]
[1738869181071,0.15,96628.0,96613.0,0.20714768]
[1738869181072,0.15,96633.0,96631.0,0.155229]
[1738869181263,0.0817,96645.0,96623.0,0.036224]
[1738869181486,0.023,96644.0,96615.0,0.2080419]
[1738869181686,0.173,96644.0,96631.0,0.155229]
[1738869181840,0.173,96644.0,96615.0,0.10353855]
[1738869182046,0.173,96644.0,96630.0,0.155229]
[1738869182461,0.173,96644.0,96632.0,0.155228]
[1738869182816,0.174,96644.0,96638.0,0.155218]
[1738869183014,0.001,96644.0,96626.0,0.155237]
[1738869183232,0.023,96648.0,96636.0,0.155221]
[1738869183390,0.001,96644.0,96637.0,0.155219]
[1738869183591,0.001,96644.0,96632.0,0.20697]
[1738869183790,0.001,96644.0,96643.0,0.15521]
[1738869184018,0.001,96644.0,96643.0,0.13621]
[1738869184385,0.001,96644.0,96643.0,0.17259922]
[1738869184577,0.155184,96659.0,96643.0,0.13621]
[1738869184894,0.001,96644.0,96643.0,0.15521]
[1738869185295,0.001,96644.0,96641.0,0.206949]
[1738869185296,0.00013855,96659.0,96638.0,0.02073124]
[1738869185693,0.155191,96655.0,96640.0,0.155214]
[1738869185898,0.206915,96658.0,96639.0,0.01917714]
[1738869186098,0.12963957,96650.0,96639.0,0.01917714]
[1738869186420,0.155199,96650.0,96639.0,0.01917714]
[1738869186613,0.1552,96650.0,96639.0,0.01917714]
[1738869186840,0.155201,96649.0,96639.0,0.01917714]
[1738869187158,0.155209,96644.0,96639.0,0.02017714]
[1738869187383,0.178213,96641.0,96640.0,0.01917714]
[1738869188132,0.0466,96650.0,96640.0,0.01917714]
[1738869188349,0.15519,96656.0,96640.0,0.01917714]
[1738869188565,0.023,96653.0,96625.0,0.01917714]
[1738869188798,0.12963957,96660.0,96630.0,0.206973]
[1738869188799,0.173,96650.0,96630.0,0.206973]
[1738869188997,0.155212,96642.0,96626.0,0.155237]
[1738869189321,0.155209,96644.0,96629.0,0.155231]
[1738869189472,0.023,96643.0,96630.0,0.155231]
[1738869189679,0.023,96643.0,96633.0,0.206967]
[1738869189883,0.0791,96655.0,96626.0,0.206983]
[1738869190076,0.077,96662.0,96631.0,0.01917714]
[1738869190280,0.077,96662.0,96649.0,0.206934]
[1738869190466,0.077,96662.0,96655.0,0.15519]
[1738869190672,0.077,96662.0,96632.0,0.30947365]
[1738869190871,0.077,96662.0,96634.0,0.155224]
[1738869191076,0.077,96662.0,96634.0,0.10250365]
[1738869191289,0.077,96662.0,96655.0,0.155189]
[1738869191490,0.15,96665.0,96634.0,0.10250365]
[1738869191688,0.0817067,96669.0,96658.0,0.155186]
[1738869191941,0.173,96668.0,96658.0,0.155186]
[1738869192156,0.0817067,96669.0,96658.0,0.155186]
[1738869192327,0.0001067,96669.0,96658.0,0.155186]
[1738869193142,0.0001067,96669.0,96658.0,0.17436314]
[1738869193277,0.0001067,96669.0,96658.0,0.23528884]
[1738869193483,0.0001067,96669.0,96658.0,0.17436314]
[1738869194140,0.0001067,96669.0,96658.0,0.15536314]
[1738869194544,0.0001067,96669.0,96658.0,0.15636314]
[1738869198073,0.00024525,96659.0,96658.0,0.15636314]
[1738869198476,0.00024525,96659.0,96658.0,0.17536314]
[1738869198679,0.00024525,96659.0,96658.0,0.02017714]
[1738869199056,0.15542925,96659.0,96658.0,0.00117714]
[1738869199418,0.00024525,96659.0,96658.0,0.00117714]
[1738869199900,0.00024525,96659.0,96658.0,0.15636314]
[1738869200283,0.00024525,96659.0,96658.0,0.19575904]
[1738869200441,0.00397855,96675.0,96666.0,0.155173]
[1738869200642,0.00397855,96675.0,96668.0,0.15517]
[1738869200830,0.00397855,96675.0,96669.0,0.155168]
[1738869201033,0.00397855,96675.0,96669.0,0.155167]
[1738869201441,0.00397855,96675.0,96656.0,0.00103448]
[1738869201640,0.00397855,96675.0,96667.0,0.15517]
[1738869201924,0.00397855,96675.0,96670.0,0.155166]
[1738869202105,0.00597855,96675.0,96674.0,0.15516]
[1738869202891,0.00597855,96675.0,96670.0,0.155165]
[1738869203093,0.00597855,96675.0,96669.0,0.02111591]
[1738869203513,0.00397855,96675.0,96669.0,0.02111591]
[1738869203727,0.00397855,96675.0,96670.0,0.155165]
[1738869203896,0.00597855,96675.0,96670.0,0.155165]
[1738869204089,0.00597855,96675.0,96671.0,0.155165]
[1738869204347,0.00397855,96675.0,96671.0,0.155165]
[1738869204749,0.00397855,96675.0,96672.0,0.155162]
[1738869204956,0.00397855,96675.0,96674.0,0.15516]
[1738869205975,0.00397855,96675.0,96671.0,0.206887]
[1738869206190,0.00397855,96675.0,96672.0,0.155162]
[1738869206381,0.00397855,96675.0,96671.0,0.206887]
[1738869206703,0.00397855,96675.0,96673.0,0.155161]
[1738869206861,0.00397855,96675.0,96674.0,0.15516]
[1738869208999,0.2287,96689.0,96683.0,0.155144]
[1738869209000,0.22319829,96689.0,96683.0,0.155144]
[1738869209215,0.07333689,96689.0,96683.0,0.155144]
[1738869209606,0.07333689,96689.0,96672.0,0.206883]
[1738869209809,0.07333689,96689.0,96672.0,0.01824582]
[1738869210039,0.0001067,96675.0,96674.0,0.15516]
[1738869210218,0.0001067,96675.0,96674.0,0.15616]
[1738869210526,0.0001067,96675.0,96674.0,0.15516]
[1738869211735,0.0001067,96675.0,96674.0,0.15616]
[1738869212707,0.0001067,96675.0,96674.0,0.16016]
[1738869215061,0.0001067,96675.0,96674.0,0.26266365]
[1738869215244,0.0001386,96689.0,96688.0,0.155138]
[1738869215396,0.0001068,96694.0,96693.0,0.15513]
[1738869215597,0.00056871,96694.0,96693.0,0.15513]
[1738869216032,0.00056871,96694.0,96674.0,0.0497]
[1738869216187,0.00056871,96694.0,96692.0,0.155131]
[1738869216416,0.12963957,96720.0,96692.0,0.155131]
[1738869216652,0.155117,96701.0,96692.0,0.155131]
[1738869216880,0.10250365,96719.0,96691.0,0.02077768]
[1738869217101,0.155128,96694.0,96693.0,0.001]
[1738869217566,0.155128,96694.0,96688.0,0.02037177]
[1738869217820,0.155128,96694.0,96692.0,0.001]
[1738869218068,0.33656106,96720.0,96692.0,0.001]
[1738869218351,0.15513,96693.0,96692.0,0.02382208]